lending/lending_fUSD_20241211
["ID","MTS","AMOUNT","RATE_DAILY","PERIOD"]
[344925806,1733886639607,-153.0,0.00010546,2]
[344925808,1733886639616,-153.0,0.00010546,2]
[344925810,1733886639626,-153.0,0.00010546,2]
[344925812,1733886639637,-153.0,0.00010546,2]
[344925814,1733886639647,-153.0,0.00010546,2]
[344925816,1733886639657,-153.0,0.00010546,2]
[344925817,1733886639666,-153.0,0.00010546,2]
[344925819,1733886639676,-153.0,0.00010546,2]
[344925821,1733886639689,-153.0,0.00010546,2]
[344925822,1733886639699,-153.0,0.00010546,2]
[344925824,1733886639708,-153.0,0.00010546,2]
[344925826,1733886639718,-153.0,0.00010546,2]
[344925828,1733886639727,-153.0,0.00010546,2]
[344925830,1733886639737,-150.0,0.00010584,2]
[344925831,1733886639746,-150.0,0.00010652,2]
[344925833,1733886639757,-3455.229,0.00010654,2]
[344925835,1733886639766,-548.273,0.00010654,2]
[344925836,1733886639777,-2252.931,0.00010654,2]
[344925838,1733886639787,-535.0,0.00010654,2]
[344925840,1733886639798,-150.0,0.00010654,2]
[344925842,1733886639808,-608.5,0.00010654,2]
[344925843,1733886639819,-3879.0,0.00010654,2]
[344925845,1733886639829,-150.0,0.00010669,2]
[344925847,1733886639839,-150.0,0.00010697,2]
[344925849,1733886639849,-412.85890641,0.000107,2]
[344925850,1733886639860,-804.9,0.000107,2]
[344925852,1733886639871,-410.2412095,0.00010712,2]
[344925854,1733886639883,-474.15,0.00010754,2]
[344925856,1733886639893,-150.0,0.00010754,2]
[344925858,1733886639904,-1018.74,0.00010765,2]
[344925859,1733886639913,-43589.211688,0.000108,2]
[344925861,1733886639928,-150.0,0.00010818,2]
[344925863,1733886639941,-150.0,0.0001084,2]
[344925864,1733886639950,-286.37,0.00010847,2]
[344925866,1733886639960,-150.0,0.00010874,2]
[344925868,1733886639969,-930.55558812,0.00010898,2]
[344925870,1733886639979,-1000.0,0.000109,2]
[344925872,1733886639989,-9789.25584357,0.000109,2]
[344925874,1733886639998,-150.0,0.000109,2]
[344925875,1733886640007,-212.03737808,0.000109,2]
[344925877,1733886640016,-212.03737807,0.000109,2]
[344925879,1733886640026,-2514.66161689,0.000109,2]
[344925880,1733886640035,-2514.66161689,0.00010911,2]
[344925882,1733886640045,-1519.088,0.00010922,2]
[344925884,1733886640054,-264.88365096,0.00010922,2]
[344925886,1733886640064,-2514.66161689,0.00010922,2]
[344925887,1733886640073,-150.0,0.00010925,2]
[344925889,1733886640083,-39815.29783854,0.0001093,2]
[344925893,1733886640120,-4925.01572645,0.0001093,2]
[344925896,1733886640135,-2652.72492985,0.0001093,2]
[344925898,1733886640146,-97202.24066127,0.0001093,2]
[344925899,1733886640156,-2514.66161689,0.00010933,2]
[344925901,1733886640167,-1000.0,0.0001094,2]
[344925903,1733886640176,-1000.0,0.0001094,2]
[344925904,1733886640189,-1000.0,0.0001094,2]
[344925906,1733886640199,-1000.0,0.0001094,2]
[344925908,1733886640211,-1000.0,0.0001094,2]
[344925910,1733886640221,-1000.0,0.0001094,2]
[344925912,1733886640231,-1000.0,0.0001094,2]
[344925914,1733886640240,-1000.0,0.0001094,2]
[344925916,1733886640250,-1000.0,0.0001094,2]
[344925918,1733886640260,-1000.0,0.0001094,2]
[344925919,1733886640269,-1000.0,0.0001094,2]
[344925921,1733886640279,-1000.0,0.0001094,2]
[344925923,1733886640288,-1000.0,0.0001094,2]
[344925925,1733886640299,-742.1587,0.0001094,2]
[344925927,1733886640309,-2514.66161689,0.00010944,2]
[344925929,1733886640319,-930.55558812,0.00010949,2]
[344925931,1733886640328,-2514.66161689,0.00010956,2]
[344925932,1733886640339,-500.0,0.00010958,2]
[344925934,1733886640350,-502.9796302,0.00010958,2]
[344925936,1733886640360,-500.0,0.00010958,2]
[344925938,1733886640370,-500.0,0.00010958,2]
[344925940,1733886640380,-514.92637825,0.00010958,2]
[344925942,1733886640390,-639.90792557,0.00010958,2]
[344925945,1733886640401,-500.0,0.00010958,2]
[344925947,1733886640411,-196.02903073,0.00010958,2]
[344925949,1733886640421,-233.52912591,0.00010958,2]
[344925951,1733886640431,-500.0,0.00010958,2]
[344925953,1733886640443,-645.43225811,0.00010958,2]
[344925955,1733886640452,-500.0,0.00010958,2]
[344925958,1733886640462,-500.0,0.00010958,2]
[344925960,1733886640472,-579.08477902,0.00010958,2]
[344925962,1733886640483,-500.0,0.00010958,2]
[344925965,1733886640493,-560.87763822,0.00010958,2]
[344925968,1733886640503,-500.0,0.00010958,2]
[344925971,1733886640514,-500.0,0.00010958,2]
[344925974,1733886640524,-500.0,0.00010958,2]
[344925976,1733886640534,-500.0,0.00010958,2]
[344925977,1733886640544,-199.61527463,0.00010958,2]
[344925979,1733886640554,-500.0,0.00010958,2]
[344925981,1733886640564,-501.63288801,0.00010958,2]
[344925983,1733886640574,-635.26,0.00010958,2]
[344925985,1733886640583,-635.26,0.00010958,2]
[344925987,1733886640592,-500.0,0.00010958,2]
[344925988,1733886640602,-627.43649907,0.00010958,2]
[344925990,1733886640611,-500.0,0.00010958,2]
[344925992,1733886640621,-586.91725783,0.00010958,2]
[344925994,1733886640630,-500.0,0.00010958,2]
[344925996,1733886640639,-500.0,0.00010958,2]
[344925998,1733886640649,-500.0,0.00010958,2]
[344925999,1733886640659,-500.0,0.00010958,2]
[344926001,1733886640668,-500.0,0.00010958,2]
[344926003,1733886640678,-276.52633056,0.00010958,2]
[344926005,1733886640689,-500.0,0.00010958,2]
[344926006,1733886640699,-500.25629548,0.00010958,2]
[344926008,1733886640708,-625.10204363,0.00010958,2]
[344926010,1733886640718,-500.0,0.00010958,2]
[344926012,1733886640727,-500.0,0.00010958,2]
[344926014,1733886640736,-448.22789007,0.00010958,2]
[344926016,1733886640746,-500.0,0.00010958,2]
[344926017,1733886640756,-500.0,0.00010958,2]
[344926019,1733886640766,-500.0,0.00010958,2]
[344926021,1733886640775,-500.0,0.00010958,2]
[344926023,1733886640788,-500.0,0.00010958,2]
[344926025,1733886640798,-500.0,0.00010958,2]
[344926027,1733886640807,-500.0,0.00010958,2]
[344926028,1733886640817,-500.0,0.00010958,2]
[344926030,1733886640826,-275.93133984,0.00010958,2]
[344926032,1733886640836,-321.73936367,0.00010958,2]
[344926034,1733886640845,-500.0,0.00010958,2]
[344926036,1733886640854,-500.0,0.00010958,2]
[344926037,1733886640863,-500.0,0.00010958,2]
[344926039,1733886640873,-286.93833509,0.00010958,2]
[344926041,1733886640883,-500.0,0.00010958,2]
[344926042,1733886640893,-500.0,0.00010958,2]
[344926043,1733886640902,-500.0,0.00010958,2]
[344926044,1733886640912,-500.0,0.00010958,2]
[344926045,1733886640922,-500.0,0.00010958,2]
[344926046,1733886640932,-500.0,0.00010958,2]
[344926047,1733886640944,-500.0,0.00010958,2]
[344926048,1733886640954,-500.0,0.00010958,2]
[344926049,1733886640964,-247.31333005,0.00010958,2]
[344926050,1733886640974,-500.0,0.00010958,2]
[344926051,1733886640985,-500.0,0.00010958,2]
[344926052,1733886640996,-500.0,0.00010958,2]
[344926054,1733886641007,-500.0,0.00010958,2]
[344926055,1733886641016,-500.0,0.00010958,2]
[344926057,1733886641025,-500.0,0.00010958,2]
[344926059,1733886641034,-500.0,0.00010958,2]
[344926061,1733886641043,-500.0,0.00010958,2]
[344926063,1733886641052,-500.0,0.00010958,2]
[344926065,1733886641063,-500.0,0.00010958,2]
[344926067,1733886641072,-500.0,0.00010958,2]
[344926069,1733886641082,-500.0,0.00010958,2]
[344926071,1733886641092,-641.96,0.00010958,2]
[344926073,1733886641101,-641.96,0.00010958,2]
[344926075,1733886641111,-500.0,0.00010958,2]
[344926077,1733886641121,-500.0,0.00010958,2]
[344926079,1733886641131,-500.0,0.00010958,2]
[344926081,1733886641142,-500.0,0.00010958,2]
[344926083,1733886641152,-1067.7,0.00010958,2]
[344926085,1733886641162,-1067.7,0.00010958,2]
[344926087,1733886641171,-500.0,0.00010958,2]
[344926089,1733886641180,-500.0,0.00010958,2]
[344926091,1733886641191,-181.6490266,0.00010958,2]
[344926093,1733886641200,-2949.24,0.00010958,2]
[344926095,1733886641211,-2949.24,0.00010958,2]
[344926097,1733886641223,-3316.58,0.00010958,2]
[344926099,1733886641232,-3316.58,0.00010958,2]
[344926101,1733886641242,-500.0,0.00010958,2]
[344926103,1733886641252,-500.0,0.00010958,2]
[344926105,1733886641262,-500.0,0.00010958,2]
[344926107,1733886641273,-500.0,0.00010958,2]
[344926109,1733886641282,-500.0,0.00010958,2]
[344926111,1733886641292,-500.0,0.00010958,2]
[344926113,1733886641302,-500.0,0.00010958,2]
[344926115,1733886641312,-500.0,0.00010958,2]
[344926117,1733886641322,-500.0,0.00010958,2]
[344926119,1733886641331,-500.0,0.00010958,2]
[344926121,1733886641341,-378.77533098,0.00010958,2]
[344926123,1733886641351,-500.0,0.00010958,2]
[344926125,1733886641361,-500.0,0.00010958,2]
[344926127,1733886641375,-500.0,0.00010958,2]
[344926129,1733886641385,-623.28447951,0.00010958,2]
[344926131,1733886641395,-232.84614869,0.00010958,2]
[344926133,1733886641405,-500.0,0.00010958,2]
[344926135,1733886641415,-500.0,0.00010958,2]
[344926137,1733886641425,-3819.13,0.00010958,2]
[344926139,1733886641435,-1015.62495491,0.00010958,2]
[344926156,1733886641595,-257.079,0.00010958,2]
[344926158,1733886641606,-2546.42604509,0.00010958,2]
[344926160,1733886641616,-500.0,0.00010958,2]
[344926162,1733886641625,-519.43007568,0.00010958,2]
[344926164,1733886641637,-500.0,0.00010958,2]
[344926166,1733886641646,-500.0,0.00010958,2]
[344926168,1733886641655,-2984.36,0.00010958,2]
[344926170,1733886641664,-2984.36,0.00010958,2]
[344926172,1733886641674,-500.0,0.00010958,2]
[344926174,1733886641683,-500.0,0.00010958,2]
[344926176,1733886641696,-500.0,0.00010958,2]
[344926178,1733886641705,-500.0,0.00010958,2]
[344926180,1733886641715,-500.0,0.00010958,2]
[344926182,1733886641725,-500.0,0.00010958,2]
[344926184,1733886641735,-540.65204074,0.00010958,2]
[344926186,1733886641745,-500.0,0.00010958,2]
[344926188,1733886641754,-500.0,0.00010958,2]
[344926190,1733886641763,-924.32,0.00010958,2]
[344926192,1733886641773,-924.32,0.00010958,2]
[344926194,1733886641782,-500.0,0.00010958,2]
[344926196,1733886641791,-500.0,0.00010958,2]
[344926198,1733886641800,-203.4223122,0.00010958,2]
[344926200,1733886641809,-869.03,0.00010958,2]
[344926201,1733886641819,-869.03,0.00010958,2]
[344926203,1733886641829,-563.6,0.00010958,2]
[344926206,1733886641839,-563.6,0.00010958,2]
[344926207,1733886641848,-500.0,0.00010958,2]
[344926209,1733886641857,-500.0,0.00010958,2]
[344926211,1733886641868,-476.35370997,0.00010958,2]
[344926214,1733886641878,-534.23,0.00010958,2]
[344926215,1733886641887,-534.23,0.00010958,2]
[344926218,1733886641896,-4301.5,0.00010958,2]
[344926220,1733886641906,-4301.5,0.00010958,2]
[344926222,1733886641916,-2540.77,0.00010958,2]
[344926224,1733886641925,-2540.77,0.00010958,2]
[344926226,1733886641934,-601.95,0.00010958,2]
[344926228,1733886641953,-601.95,0.00010958,2]
[344926230,1733886641963,-543.84,0.00010958,2]
[344926232,1733886641972,-543.84,0.00010958,2]
[344926234,1733886641981,-500.0,0.00010958,2]
[344926236,1733886641991,-500.0,0.00010958,2]
[344926238,1733886642000,-150.336265,0.00010958,2]
[344926240,1733886642010,-500.0,0.00010958,2]
[344926242,1733886642020,-500.0,0.00010958,2]
[344926244,1733886642031,-500.0,0.00010958,2]
[344926246,1733886642041,-500.0,0.00010958,2]
[344926248,1733886642051,-660.57,0.00010958,2]
[344926250,1733886642060,-660.57,0.00010958,2]
[344926252,1733886642071,-1334.96,0.00010958,2]
[344926254,1733886642081,-1334.96,0.00010958,2]
[344926256,1733886642090,-500.0,0.00010958,2]
[344926258,1733886642100,-500.0,0.00010958,2]
[344926260,1733886642110,-500.0,0.00010958,2]
[344926262,1733886642119,-282.9860568,0.00010958,2]
[344926264,1733886642130,-500.0,0.00010958,2]
[344926266,1733886642141,-448.09251005,0.00010958,2]
[344926268,1733886642151,-500.0,0.00010958,2]
[344926270,1733886642161,-500.0,0.00010958,2]
[344926272,1733886642171,-500.0,0.00010958,2]
[344926274,1733886642181,-500.0,0.00010958,2]
[344926276,1733886642192,-500.0,0.00010958,2]
[344926278,1733886642202,-500.0,0.00010958,2]
[344926280,1733886642212,-500.0,0.00010958,2]
[344926282,1733886642222,-500.0,0.00010958,2]
[344926284,1733886642232,-500.0,0.00010958,2]
[344926286,1733886642242,-500.0,0.00010958,2]
[344926288,1733886642251,-500.0,0.00010958,2]
[344926290,1733886642261,-500.0,0.00010958,2]
[344926292,1733886642271,-500.0,0.00010958,2]
[344926294,1733886642281,-500.0,0.00010958,2]
[344926296,1733886642291,-500.0,0.00010958,2]
[344926298,1733886642301,-500.0,0.00010958,2]
[344926300,1733886642311,-982.85,0.00010958,2]
[344926302,1733886642321,-982.85,0.00010958,2]
[344926304,1733886642330,-500.0,0.00010958,2]
[344926306,1733886642340,-500.0,0.00010958,2]
[344926308,1733886642350,-500.0,0.00010958,2]
[344926310,1733886642360,-512.49540859,0.00010958,2]
[344926312,1733886642370,-500.0,0.00010958,2]
[344926314,1733886642380,-500.0,0.00010958,2]
[344926316,1733886642389,-500.0,0.00010958,2]
[344926317,1733886642399,-5049.0,0.00010959,2]
[344926320,1733886642409,-2514.66161689,0.00010967,2]
[344926322,1733886642419,-501.23322411,0.00010973,2]
[344926323,1733886642428,-503.03857529,0.00010973,2]
[344926325,1733886642440,-500.0,0.00010973,2]
[344926327,1733886642451,-500.0,0.00010973,2]
[344926330,1733886642461,-269.16012338,0.00010973,2]
[344926332,1733886642473,-2514.66161689,0.00010978,2]
[344926333,1733886642483,-991.1,0.00010985,2]
[344926335,1733886642493,-2514.66161689,0.00010989,2]
[344926337,1733886642503,-500.0,0.00010994,2]
[344926340,1733886642514,-500.0,0.00010994,2]
[344926341,1733886642524,-635.26,0.00010994,2]
[344926343,1733886642535,-500.0,0.00010994,2]
[344926345,1733886642545,-500.0,0.00010994,2]
[344926347,1733886642555,-500.0,0.00010994,2]
[344926350,1733886642565,-500.0,0.00010994,2]
[344926351,1733886642575,-500.0,0.00010994,2]
[344926353,1733886642585,-500.0,0.00010994,2]
[344926355,1733886642595,-204.90292045,0.00010994,2]
[344926357,1733886642605,-500.0,0.00010994,2]
[344926359,1733886642615,-500.0,0.00010994,2]
[344926361,1733886642625,-500.0,0.00010994,2]
[344926363,1733886642635,-462.81905977,0.00010994,2]
[344926365,1733886642645,-423.40841109,0.00010994,2]
[344926367,1733886642655,-641.96,0.00010994,2]
[344926369,1733886642665,-500.0,0.00010994,2]
[344926371,1733886642675,-1067.7,0.00010994,2]
[344926374,1733886642685,-500.0,0.00010994,2]
[344926375,1733886642697,-2949.24,0.00010994,2]
[344926378,1733886642707,-500.0,0.00010994,2]
[344926380,1733886642717,-500.0,0.00010994,2]
[344926382,1733886642726,-500.0,0.00010994,2]
[344926384,1733886642736,-500.0,0.00010994,2]
[344926386,1733886642746,-500.0,0.00010994,2]
[344926388,1733886642755,-500.0,0.00010994,2]
[344926390,1733886642764,-500.0,0.00010994,2]
[344926392,1733886642774,-534.23,0.00010994,2]
[344926394,1733886642783,-500.0,0.00010994,2]
[344926396,1733886642793,-205.0,0.00010995,2]
[344926397,1733886642802,-205.0,0.00010995,2]
[344926399,1733886642812,-205.0,0.00010995,2]
[344926402,1733886642822,-205.0,0.00010995,2]
[344926404,1733886642832,-205.0,0.00010995,2]
[344926406,1733886642843,-205.0,0.00010995,2]
[344926408,1733886642853,-205.0,0.00010995,2]
[344926410,1733886642863,-205.0,0.00010995,2]
[344926412,1733886642873,-205.0,0.00010995,2]
[344926414,1733886642883,-800.0,0.00010995,2]
[344926416,1733886642895,-800.0,0.00010995,2]
[344926417,1733886642906,-800.0,0.00010995,2]
[344926419,1733886642916,-800.0,0.00010995,2]
[344926421,1733886642926,-800.0,0.00010995,2]
[344926423,1733886642936,-800.0,0.00010995,2]
[344926425,1733886642952,-800.0,0.00010995,2]
[344926427,1733886642962,-800.0,0.00010995,2]
[344926429,1733886642972,-800.0,0.00010995,2]
[344926431,1733886642982,-800.0,0.00010995,2]
[344926433,1733886642992,-800.0,0.00010995,2]
[344926435,1733886643002,-800.0,0.00010995,2]
[344926437,1733886643013,-297494.84668926,0.00010995,2]
[344926440,1733886643026,-156544.49525879,0.00010995,2]
[344926442,1733886643036,-227.50665149,0.00010995,2]
[344926444,1733886643047,-265.61791667,0.00010995,2]
[344926446,1733886643056,-200.0,0.00010995,2]
[344926448,1733886643066,-200.0,0.00010996,2]
[344926450,1733886643077,-4340.45514694,0.00010996,2]
[344926452,1733886643086,-5191.01962732,0.00010996,2]
[344926454,1733886643096,-3917.82562297,0.00010996,2]
[344926456,1733886643106,-500.0,0.00010996,2]
[344926458,1733886643117,-3316.58,0.00010996,2]
[344926460,1733886643129,-500.0,0.00010996,2]
[344926461,1733886643138,-500.0,0.00010996,2]
[344926463,1733886643149,-500.0,0.00010996,2]
[344926465,1733886643159,-3819.13,0.00010996,2]
[344926467,1733886643171,-2984.36,0.00010996,2]
[344926469,1733886643181,-500.0,0.00010996,2]
[344926472,1733886643196,-2540.77,0.00010996,2]
[344926473,1733886643206,-500.0,0.00010996,2]
[344926475,1733886643217,-1334.96,0.00010996,2]
[344926478,1733886643227,-637.69713423,0.00010996,2]
[344926480,1733886643237,-500.0,0.00010996,2]
[344926482,1733886643247,-500.0,0.00010996,2]
[344926483,1733886643257,-500.0,0.00010996,2]
[344926485,1733886643267,-500.0,0.00010996,2]
[344926487,1733886643279,-982.85,0.00010996,2]
[344926489,1733886643289,-500.0,0.00010996,2]
[344926491,1733886643299,-500.0,0.00010996,2]
[344926493,1733886643309,-500.0,0.00010996,2]
[344926495,1733886643319,-10620.19666028,0.00010996,2]
[344926497,1733886643329,-328.54016396,0.00010997,2]
[344926499,1733886643338,-3917.82562297,0.00010997,2]
[344926501,1733886643348,-45877.51021605,0.00010997,2]
[344926503,1733886643360,-41900.0,0.00010997,2]
[344926506,1733886643372,-2648.6787727,0.00010997,2]
[344926508,1733886643384,-974.9292278,0.00010997,2]
[344926510,1733886643396,-425.1582348,0.00010997,2]
[344926551,1733886643846,-7611.05102163,0.00010997,2]
[344926563,1733886643963,-676.33330141,0.00010997,2]
[344926566,1733886643976,-7336.18371553,0.00010997,2]
[344926568,1733886643991,-4325.0000005,0.00010997,2]
[344926832,1733886646726,-500.0,0.00010958,2]
[344926834,1733886646738,-500.0,0.00010958,2]
[344926836,1733886646748,-500.0,0.00010958,2]
[344926838,1733886646758,-38.73754992,0.00010958,2]
[344926840,1733886646770,-461.26245008,0.00010958,2]
[344926842,1733886646780,-500.0,0.00010958,2]
[344926844,1733886646790,-195.98745992,0.00010958,2]
[344926848,1733886646820,-304.01254008,0.00010958,2]
[344926851,1733886646830,-161.9779216,0.00010973,2]
[344926852,1733886646840,-500.0,0.00010996,2]
[344926855,1733886646849,-186.35953832,0.00010996,2]
[344926857,1733886646861,-313.64046168,0.00010996,2]
[344926859,1733886646871,-414009.27535249,0.00010997,2]
[344926861,1733886646883,-524305.54992043,0.00010997,2]
[344926863,1733886646895,-5157.8190213,0.00010997,2]
[344926865,1733886646906,-4993.47451318,0.00010997,2]
[344926867,1733886646917,-743.3523116,0.00010997,2]
[344927045,1733886660271,150.0,0.00024,60]
[344927046,1733886662379,150.0,0.00024,60]
[344927047,1733886674048,206.67811835,0.00024,60]
[344927048,1733886759836,37244.0,0.00024,60]
[344927049,1733886792826,500.0,0.00022326,120]
[344927050,1733886793631,331.809798,0.00023926,120]
[344927051,1733886796294,2000.0,0.00022769,120]
[344927052,1733886797111,2000.0,0.00023818,120]
[344927053,1733886803307,500.0,0.00022326,120]
[344927054,1733886803811,233.984479,0.00023926,120]
[344927055,1733886812511,533.47,8.219e-05,2]
[344927056,1733886827044,2000.0,0.00024,60]
[344927057,1733886827374,2000.0,0.00024,60]
[344927058,1733886827693,2000.0,0.00024,60]
[344927059,1733886828027,2000.0,0.00024,60]
[344927060,1733886828350,2000.0,0.00024,60]
[344927061,1733886828802,2000.0,0.00024,60]
[344927062,1733886829173,2000.0,0.00024,60]
[344927063,1733886829506,2000.0,0.00024,60]
[344927064,1733886830039,2000.0,0.00024,60]
[344927065,1733886830518,2000.0,0.00024,60]
[344927067,1733887380145,8437.92674433,0.00024,60]
[344927089,1733887798631,247.3,9.308e-05,2]
[344927093,1733887829995,1000.0,9.308e-05,2]
[344927109,1733887831806,-7001.86023516,9.568e-05,2]
[344927110,1733887831818,-4000.0000016,9.568e-05,2]
[344927111,1733887831831,-586.2,9.568e-05,2]
[344927112,1733887832189,-917.61691343,9.568e-05,2]
[344927118,1733887837730,-11394.32284981,9.568e-05,2]
[344927119,1733887837741,-171.82,9.611e-05,2]
[344927120,1733887837752,-250.0,9.615e-05,2]
[344927121,1733887837762,-150.0,9.663e-05,2]
[344927122,1733887837773,-5074.0,9.664e-05,2]
[344927123,1733887837784,-5069.0,9.664e-05,2]
[344927124,1733887837795,-1911.81573184,9.664e-05,2]
[344927125,1733887837808,-3157.18426816,9.664e-05,2]
[344927126,1733887837820,-5069.0,9.664e-05,2]
[344927127,1733887837831,-5069.0,9.664e-05,2]
[344927128,1733887837842,-5069.0,9.664e-05,2]
[344927129,1733887837852,-167.54,9.858e-05,2]
[344927130,1733887837863,-3845.0,9.9e-05,2]
[344927131,1733887837874,-503.25205257,9.973e-05,2]
[344927132,1733887837885,-150.0,9.986e-05,2]
[344927133,1733887837896,-177.03095161,9.986e-05,2]
[344927134,1733887837906,-288.4245521,9.986e-05,2]
[344927135,1733887837919,-270.83860084,9.999e-05,2]
[344927136,1733887837930,-19493.72957472,0.0001,2]
[344927137,1733887837951,-48818.85747114,0.0001,2]
[344927138,1733887838120,-13783.63025479,0.0001,2]
[344927139,1733887838133,-10075.42310379,0.0001,2]
[344927140,1733887838145,-122219.7695,0.0001,2]
[344927143,1733887839713,-722.19529931,0.0001,2]
[344927144,1733887839727,-547.64999999,0.0001,2]
[344927150,1733887839939,-13199.13848962,0.0001,2]
[344927152,1733887839953,-1383.89329523,0.0001,2]
[344927154,1733887839967,-1261.04503495,0.0001,2]
[344927156,1733887839979,-1787.55805162,0.0001,2]
[344927159,1733887839992,-7898.0,0.0001,2]
[344927161,1733887840005,-850.16226948,0.0001,2]
[344927163,1733887840018,-568.5368175,0.0001,2]
[344927166,1733887840030,-366.55,0.0001,2]
[344927168,1733887840044,-621.51461131,0.0001,2]
[344927172,1733887842731,-6855.90067227,0.0001,2]
[344927175,1733887842744,-577.13477045,0.0001,2]
[344927177,1733887842755,-21533.27470492,0.0001,2]
[344927179,1733887842767,-10377.31968114,0.0001,2]
[344927180,1733887842903,-2693.56481546,0.0001,2]
[344927181,1733887842916,-6971.48406836,0.0001,2]
[344927182,1733887842927,-5242.74940921,0.0001,2]
[344927183,1733887842938,-642.36162373,0.0001,2]
[344927184,1733887843083,-1426.56492949,0.0001,2]
[344927185,1733887843095,-770.08799178,0.0001,2]
[344927186,1733887843106,-3420.00000013,0.0001,2]
[344927187,1733887843118,-532.35328105,0.0001,2]
[344927188,1733887843129,-732.09707894,0.0001,2]
[344927189,1733887843142,-1060.0051873,0.0001,2]
[344927190,1733887843277,-928.90441482,0.0001,2]
[344927193,1733887845532,-766.39225366,0.0001,2]
[344927194,1733887845702,-602.0,0.0001,2]
[344927195,1733887845714,-463.49596685,0.0001,2]
[344927196,1733887845725,-324.95834368,0.0001,2]
[344927197,1733887845737,-7097.95413593,0.0001,2]
[344927198,1733887845749,-1443.20312087,0.0001,2]
[344927199,1733887845760,-3013.95696632,0.0001,2]
[344927200,1733887845874,-480.12794735,0.0001,2]
[344927201,1733887845885,-8987.6809423,0.0001,2]
[344927202,1733887845897,-1303.17693193,0.0001,2]
[344927203,1733887845907,-2238.27476078,0.0001,2]
[344927204,1733887845922,-5461.33790142,0.0001,2]
[344927205,1733887845937,-2049.27708235,0.0001,2]
[344927206,1733887845948,-1865.90015416,0.0001,2]
[344927207,1733887845962,-434.42344341,0.0001,2]
[344927208,1733887845974,-5926.27291896,0.0001,2]
[344927209,1733887846061,-500.0,0.0001,2]
[344927210,1733887846073,-39516.72389401,0.0001,2]
[344927212,1733887897184,634.0,0.00021,120]
[344927213,1733887989846,553.72,8.219e-05,2]
[344927215,1733888270066,250.0,9.483e-05,2]
[344927216,1733888317735,284.49,9.482e-05,2]
[344927217,1733888600265,16118.17,9.22e-05,2]
[344927219,1733888806795,1000.0,9.467e-05,2]
[344927220,1733888932169,526.03,8.219e-05,2]
[344927221,1733888967103,-200.0,9.8e-05,3]
[344927222,1733888967132,-500.0,9.9e-05,3]
[344927223,1733888967162,-800.0,0.0001,3]
[344927224,1733888986084,-1100.0,0.000102,3]
[344927225,1733888986108,-1300.0,0.000103,3]
[344927226,1733888986131,-200.0,0.000104,3]
[344927227,1733888986157,-200.0,0.000105,3]
[344927236,1733889030092,-247.3,9.524e-05,2]
[344927237,1733889030115,-250.0,9.571e-05,2]
[344927238,1733889030139,-300.0,9.899e-05,2]
[344927239,1733889030162,-4501.4001,9.9e-05,2]
[344927240,1733889030186,-3040.0,9.9e-05,2]
[344927241,1733889030208,-425.78390439,9.9e-05,2]
[344927242,1733889030231,-150.0,9.945e-05,2]
[344927243,1733889030253,-425.78390439,9.95e-05,2]
[344927244,1733889030274,-199.95920498,9.973e-05,2]
[344927245,1733889030295,-600.66235907,9.973e-05,2]
[344927246,1733889030316,-500.0,9.973e-05,2]
[344927247,1733889030338,-500.0,9.973e-05,2]